bitfinex/quotes_ETHUSD_20250605
["timestamp","ask_amount","ask_price","bid_price","bid_amount"]
[1749128799385,6.426,2632.6,2632.4,13.79873198]
[1749128800390,6.426,2632.6,2632.4,3.79873198]
[1749128801248,6.426,2632.6,2632.3,3.7989013]
[1749128801451,6.426,2632.6,2632.4,3.79875116]
[1749128802091,10.22454852,2632.6,2632.2,1.747]
[1749128802294,6.426,2632.6,2632.3,3.79894346]
[1749128803180,6.426,2632.6,2632.0,1.92659594]
[1749128803181,11.37319139,2632.6,2632.0,1.92659594]
[1749128803379,1.4478,2632.5,2632.2,3.79910037]
[1749128803579,1.4478,2632.5,2632.2,13.79910037]
[1749128804297,1.4478,2632.5,2632.3,3.7989523]
[1749128804695,6.423,2632.4,2632.3,3.7989523]
[1749128804997,6.423,2632.4,2632.3,3.79888137]
[1749128805196,1.5408,2632.7,2632.4,3.79876027]
[1749128805396,6.422,2632.6,2632.4,3.79876027]
[1749128805796,6.422,2632.6,2632.3,3.79890242]
[1749128806101,6.422,2632.6,2632.3,3.79895127]
[1749128806283,6.422,2632.6,2632.4,3.79875432]
[1749128806995,6.422,2632.6,2632.2,16.0]
[1749128807199,6.422,2632.6,2632.1,1.741]
[1749128807504,6.422,2632.6,2632.2,3.79902696]
[1749128807666,10.22053009,2632.6,2632.2,3.79902696]
[1749128808078,3.79869298,2632.5,2632.1,19.79923236]
[1749128808277,16.0,2632.5,2631.7,1.5527]
[1749128808466,1.4929,2632.7,2632.1,3.79913975]
[1749128808467,6.421,2632.4,2632.1,3.79913975]
[1749128808669,6.421,2632.4,2632.2,3.79898818]
[1749128809303,1.4929,2632.7,2632.2,3.79906158]
[1749128809489,6.421,2632.6,2632.3,3.79888604]
[1749128810973,10.21953568,2632.6,2632.1,1.5078]
[1749128811221,10.21953568,2632.6,2632.1,5.30698764]
[1749128811400,15.16672707,2632.6,2632.1,5.30698764]
[1749128811723,15.1667787,2632.6,2632.2,3.79909743]
[1749128811870,6.421,2632.6,2632.2,3.79909743]
[1749128812073,6.421,2632.6,2632.3,3.79893845]
[1749128812296,6.421,2632.6,2632.2,3.79902427]
[1749128812613,15.16681142,2632.6,2632.1,7.04797354]
[1749128813499,6.42,2632.5,2632.1,7.04798654]
[1749128814622,6.42,2632.5,2632.2,3.79909928]
[1749128815802,6.419,2632.4,2632.2,3.79909928]
[1749128816411,6.419,2632.4,2632.1,7.04798804]
[1749128816807,6.419,2632.4,2632.1,5.54018804]
[1749128817009,3.79935524,2632.1,2631.7,28.294586]
[1749128817233,6.418,2632.0,2631.8,1.741]
[1749128817733,6.418,2632.0,2631.8,5.54060643]
[1749128818105,1.4631,2632.3,2632.0,3.79936717]
[1749128818303,6.418,2632.2,2632.0,3.79936717]
[1749128818618,6.418,2632.2,2631.9,3.79945317]
[1749128819093,6.418,2632.2,2632.0,3.79937068]
[1749128819583,6.418,2632.2,2631.9,3.79945621]
[1749128820528,6.417,2632.1,2632.0,3.79936772]
[1749128820727,6.417,2632.1,2632.0,3.79939209]
[1749128821045,3.79860812,2632.6,2632.0,3.79939209]
[1749128821046,6.417,2632.3,2632.2,3.79908033]
[1749128821243,6.417,2632.3,2632.1,3.79916435]
[1749128821444,6.417,2632.3,2631.9,1.741]
[1749128821445,12.83519139,2632.3,2631.9,1.741]
[1749128821606,7.888,2632.3,2632.0,3.79932529]
[1749128821949,0.45337834,2632.7,2632.1,1.4872]
[1749128822260,0.02,2632.9,2632.5,4.86352879]
[1749128822448,0.02,2632.9,2632.8,3.79823761]
[1749128822953,3.81817783,2632.9,2632.5,1.06489415]
[1749128823148,3.81817783,2632.9,2632.5,1.741]
[1749128823149,0.02,2632.9,2632.5,1.741]
[1749128823358,0.02,2632.9,2632.8,8.745429]
[1749128823563,0.02,2632.9,2632.8,13.79823761]
[1749128823766,0.02,2632.9,2632.8,29.79823761]
[1749128824066,0.02,2632.9,2632.8,32.44982461]
[1749128824237,0.02,2632.9,2632.8,30.42235161]
[1749128824632,0.02,2632.9,2632.8,28.79581661]
[1749128825035,0.02,2632.9,2632.6,3.79851938]
[1749128825264,0.02,2632.9,2632.8,3.79823761]
[1749128827123,0.02,2632.9,2632.8,20.16894961]
[1749128827325,0.02,2632.9,2632.8,8.02923761]
[1749128827965,0.02,2632.9,2632.8,9.53713761]
[1749128830773,0.02,2632.9,2632.8,30.484329]
[1749128831881,0.02,2632.9,2632.8,25.53713761]
[1749128833106,0.02,2632.9,2632.8,21.30613761]
[1749128833309,0.02,2632.9,2632.8,34.49863661]
[1749128833524,0.02,2632.9,2632.8,13.50225961]
[1749128833816,0.02,2632.9,2632.8,29.50225961]
[1749128834035,0.02,2632.9,2632.8,27.76725961]
[1749128834189,0.02,2632.9,2632.8,26.91206961]
[1749128836118,0.02,2632.9,2632.8,31.859261]
[1749128838394,0.02,2632.9,2632.8,30.124261]
[1749128838605,0.02,2632.9,2632.8,31.858261]
[1749128839985,0.02,2632.9,2632.8,26.91106961]
[1749128840244,0.02,2632.9,2632.8,33.32006961]
[1749128841293,0.02,2632.9,2632.8,25.17706961]
[1749128841493,0.02,2632.9,2632.8,26.48763561]
[1749128842800,0.02,2632.9,2632.8,24.75363561]
[1749128843006,0.02,2632.9,2632.8,26.48763561]
[1749128843403,0.02,2632.9,2632.8,24.75363561]
[1749128843603,0.02,2632.9,2632.8,19.79823761]
[1749128843807,0.02,2632.9,2632.8,25.70835961]
[1749128844095,0.02,2632.9,2632.8,22.04927461]
[1749128844327,0.02,2632.9,2632.8,32.92714661]
[1749128844733,0.02,2632.9,2632.8,26.28416861]
[1749128845346,0.02,2632.9,2632.8,19.79823761]
[1749128845510,0.02,2632.9,2632.8,22.42998461]
[1749128846650,0.02,2632.9,2632.8,18.631747]
[1749128846944,0.02,2632.9,2632.8,17.734]
[1749128847099,1.5397,2632.8,2632.4,1.734]
[1749128847319,1.5397,2632.8,2632.5,3.79862096]
[1749128847522,6.48689139,2632.8,2632.4,3.79875066]
[1749128847742,6.48689139,2632.8,2632.4,1.734]
[1749128847948,6.48689139,2632.8,2632.5,3.79866052]
[1749128848151,6.48689139,2632.8,2632.5,16.0]
[1749128848351,6.48689139,2632.8,2632.5,19.79862178]
[1749128848658,1.4809,2632.7,2632.2,3.79903333]
[1749128848839,1.4809,2632.7,2632.3,3.79887917]
[1749128848840,4.94719139,2632.6,2632.3,3.79887917]
[1749128849160,4.94719139,2632.6,2632.3,16.0]
[1749128849319,4.94719139,2632.6,2632.3,3.7989497]
[1749128849845,4.94719139,2632.6,2632.2,16.0]
[1749128850048,4.94719139,2632.6,2632.4,3.79880842]
[1749128850366,1.4809,2632.7,2632.4,3.79880842]
[1749128851264,1.4809,2632.7,2632.3,3.79894064]
[1749128851427,1.4809,2632.7,2632.4,3.7987389]
[1749128851428,6.406,2632.6,2632.4,3.7987389]
[1749128851758,6.406,2632.6,2632.5,3.79855331]
[1749128854892,6.406,2632.6,2631.8,5.24621812]
[1749128855096,6.406,2632.6,2632.4,3.79875026]
[1749128855238,1.4809,2632.7,2632.6,3.79852617]
[1749128855439,6.405,2632.7,2632.6,3.79852617]
[1749128857746,0.02,2632.9,2632.8,3.79823761]
[1749128857946,6.425,2632.9,2632.7,3.79834309]
[1749128858267,6.425,2632.9,2632.6,3.79846759]
[1749128858767,1.5512,2632.8,2632.5,3.79858584]
[1749128859198,4.94719139,2632.7,2632.4,5.53375097]
[1749128859494,4.94719139,2632.7,2632.1,16.0]
[1749128859495,4.94719139,2632.7,2632.5,3.79866745]
[1749128859862,1.5512,2632.8,2632.5,3.79866745]
[1749128860364,1.5512,2632.8,2632.6,3.79851022]
[1749128860873,1.5512,2632.8,2632.5,3.79858552]
[1749128861192,1.5512,2632.8,2632.6,3.79851656]
[1749128861863,1.5512,2632.8,2632.7,3.79838188]
[1749128862067,7.9552,2632.8,2632.6,3.7984081]
[1749128862475,0.02,2632.9,2632.8,3.79823761]
[1749128862658,6.424,2632.9,2632.8,3.79823761]
[1749128864494,6.424,2632.9,2632.7,3.7983021]
[1749128864894,6.423,2632.9,2632.8,3.79823761]
[1749128865089,6.423,2632.9,2632.7,3.79832184]
[1749128865668,6.423,2632.9,2632.8,3.79823761]
[1749128866071,6.423,2632.9,2632.7,3.79831569]
[1749128866767,6.423,2632.9,2632.6,10.0]
[1749128866768,6.423,2632.9,2632.6,3.79848404]
[1749128866973,6.423,2632.9,2632.7,10.0]
[1749128867276,6.423,2632.9,2632.7,3.79837599]
[1749128867595,6.423,2632.9,2632.7,10.0]
[1749128867801,6.423,2632.9,2632.5,1.729]
[1749128868099,6.423,2632.9,2632.6,3.79852617]
[1749128868305,6.423,2632.9,2632.7,10.0]
[1749128869063,6.423,2632.9,2632.6,3.79840733]
[1749128869285,6.423,2632.9,2632.7,10.0]
[1749128869601,6.423,2632.9,2632.7,13.7983746]
[1749128869797,0.02,2632.9,2632.8,3.79823761]
[1749128870178,6.422,2632.9,2632.8,3.79823761]
[1749128870479,6.422,2632.9,2632.7,13.79829477]
[1749128870798,6.422,2632.9,2632.8,3.79823761]
[1749128871200,6.422,2632.9,2632.7,10.0]
[1749128871433,0.02,2632.9,2632.8,13.79823761]
[1749128871568,6.421,2632.9,2632.8,13.79823761]
[1749128873505,0.02,2632.9,2632.8,13.79823761]
[1749128873681,0.02,2632.9,2632.8,39.91220461]
[1749128874184,0.02,2632.9,2632.8,20.113967]
[1749128874383,0.02,2632.9,2632.8,23.91220461]
[1749128876412,0.02,2632.9,2632.6,16.0]
[1749128876609,0.02,2632.9,2632.8,3.79823761]
[1749128878429,0.02,2632.9,2632.8,21.52723761]
[1749128879797,0.02,2632.9,2632.8,32.45445961]
[1749128880032,0.02,2632.9,2632.8,28.64945961]
[1749128880400,0.02,2632.9,2632.8,25.00450561]
[1749128880732,0.02,2632.9,2632.8,23.85650561]
[1749128882110,0.02,2632.9,2632.8,21.52723761]
[1749128883296,6.57539139,2632.9,2632.0,9.7233]
[1749128883497,5.40709379,2632.4,2632.0,9.923]
[1749128883698,5.40709379,2632.4,2632.1,16.0]
[1749128883699,6.397,2632.3,2632.1,16.0]
[1749128884000,1.6082,2632.4,2632.1,16.0]
[1749128884313,3.7974268,2633.4,2632.1,16.0]
[1749128884314,1.515,2632.6,2632.2,1.729]
[1749128884711,1.515,2632.6,2632.3,3.79888662]
[1749128885332,1.515,2632.6,2632.3,3.79889379]
[1749128885954,6.46219139,2632.6,2632.2,5.52799634]
[1749128886752,4.94719139,2632.4,2632.0,8.194]
[1749128886963,10.19602395,2632.3,2632.0,8.194]
[1749128887346,1.4751,2632.1,2632.0,8.194]
[1749128887744,1.4751,2632.1,2631.9,1.729]
[1749128887950,6.397,2632.0,2631.9,1.729]
[1749128888153,6.397,2632.0,2631.9,11.729]
[1749128890531,11.34419139,2632.0,2631.5,0.38718539]
[1749128890733,1.4719,2631.7,2631.4,1.725]
[1749128890941,11.34319139,2631.6,2631.4,1.725]
[1749128891157,6.396,2631.6,2631.4,1.725]
[1749128893090,6.41909139,2631.7,2631.4,5.52525194]
[1749128893091,1.4719,2631.7,2631.4,5.52525194]
[1749128893296,1.5187,2631.9,2631.6,3.79995661]
[1749128893450,6.396,2631.7,2631.5,3.80003056]
[1749128893860,6.396,2631.7,2631.4,5.52516477]
[1749128893861,6.396,2631.7,2631.6,3.7999696]
[1749128894067,6.396,2631.7,2631.5,3.80003313]
[1749128894278,6.396,2631.7,2631.4,5.52518035]
[1749128894780,6.46589139,2631.9,2631.5,3.800114]
[1749128894980,1.5127,2632.1,2631.5,1.5633]
[1749128895280,1.5127,2632.1,2631.7,13.79979243]
[1749128895470,6.396,2632.0,2631.8,3.79968082]
[1749128895985,1.5127,2632.1,2631.9,3.79952536]
[1749128896218,6.396,2632.1,2631.8,3.79956013]
[1749128896388,6.396,2632.1,2631.7,3.7998252]
[1749128896686,1.4952,2632.3,2631.7,10.0]
[1749128896851,11.34319139,2632.2,2631.8,5.52460107]
[1749128897248,4.94719139,2632.0,2631.7,19.79976912]
[1749128897585,4.94719139,2632.0,2631.8,1.725]
[1749128897951,4.94719139,2632.0,2631.8,5.52461628]
[1749128898294,15.14230096,2632.2,2631.8,1.725]
[1749128898474,15.14230096,2632.2,2631.7,21.52474736]
[1749128898646,4.94719139,2632.0,2631.7,21.52474736]
[1749128899379,11.34319139,2632.2,2631.8,3.7996642]
[1749128899585,11.34319139,2632.2,2631.8,3.79959816]
[1749128899745,11.34319139,2632.2,2631.8,3.79961693]
[1749128899963,11.34319139,2632.2,2631.7,17.725]
[1749128899964,3.79968082,2631.8,2631.7,1.725]
[1749128900166,15.14187221,2631.8,2631.7,1.725]
[1749128900567,11.34219139,2631.8,2631.7,1.725]
[1749128900994,11.34219139,2631.8,2631.5,19.80010044]
[1749128901392,11.34219139,2631.8,2631.1,0.37942107]
[1749128901592,3.79987266,2631.7,2631.2,5.52546005]
[1749128901813,3.79999465,2631.6,2631.2,1.725]
[1749128901970,15.14189501,2631.8,2631.2,5.52554158]
[1749128902175,3.79998356,2631.6,2631.3,11.725]
[1749128902376,15.14189501,2631.8,2631.3,11.725]
[1749128902377,6.395,2631.5,2631.3,1.725]
[1749128902571,11.34219139,2631.5,2631.3,1.725]
[1749128902978,6.395,2631.5,2631.3,1.725]
[1749128903203,10.19514809,2631.5,2631.3,1.725]
[1749128904024,11.76994809,2631.5,2631.3,1.725]
[1749128904178,4.94719139,2631.4,2631.3,1.725]
[1749128905273,4.94719139,2631.4,2631.1,10.0]
[1749128905504,4.94719139,2631.2,2631.0,16.0]
[1749128905896,11.34119139,2631.2,2631.0,16.0]
[1749128907079,6.394,2631.2,2631.0,16.0]
[1749128907630,6.394,2631.2,2631.0,21.52582057]
[1749128907993,6.394,2631.2,2631.0,16.0]
[1749128908223,6.394,2631.2,2631.0,21.52575658]
[1749128909773,6.394,2631.2,2630.2,14.789854]
[1749128909774,1.5426,2631.1,2630.2,14.789854]
[1749128909977,5.2556881,2630.6,2630.2,10.0]
[1749128910280,7.8482,2630.6,2630.3,1.725]
[1749128910836,7.8482,2630.6,2630.4,3.80161059]
[1749128911715,17.5328,2631.2,2630.8,3.80111278]
[1749128911881,6.394,2631.1,2630.8,3.80111278]
[1749128912317,26.28089018,2631.0,2630.2,1.5806]
[1749128912485,4.94719139,2630.8,2630.4,3.80170316]
[1749128912678,4.94719139,2630.8,2630.3,11.725]
[1749128912679,11.34119139,2630.8,2630.5,3.80153677]
[1749128913303,6.394,2631.0,2630.8,3.80106527]
[1749128913802,6.394,2631.0,2630.9,3.80098065]
[1749128914003,6.394,2631.0,2630.7,10.0]
[1749128914319,1.4961,2631.4,2631.1,3.80068733]
[1749128914320,6.394,2631.2,2631.1,3.80068733]
[1749128916035,1.6055,2631.6,2631.2,3.80042506]
[1749128916254,6.393,2631.5,2631.1,3.80056312]
[1749128916401,11.34019139,2631.5,2631.1,5.52566508]
[1749128918130,6.393,2631.4,2631.1,5.52566508]
[1749128918296,6.393,2631.4,2630.6,1.4706]
[1749128918495,4.94719139,2631.5,2631.1,3.80062261]
[1749128918725,6.393,2631.4,2631.1,3.80062261]
[1749128919178,6.393,2631.4,2631.0,3.80079183]
[1749128919179,10.19328505,2631.4,2631.0,3.80079183]
[1749128919361,4.94719139,2631.3,2630.9,10.0]
[1749128919742,4.94719139,2631.3,2631.0,3.80082635]
[1749128920074,4.94719139,2631.3,2631.0,5.52582635]
[1749128921170,4.94719139,2631.3,2631.1,3.80068383]
[1749128921471,6.393,2631.4,2631.1,3.80068383]
[1749128921874,6.393,2631.4,2631.0,5.52583338]
[1749128921875,6.393,2631.4,2631.0,1.725]
[1749128922179,6.55269139,2631.6,2631.2,3.80047263]
[1749128922340,3.79971533,2631.8,2631.3,3.80028844]
[1749128922341,6.392,2631.5,2631.3,3.80028844]
[1749128922873,6.392,2631.5,2631.4,7.35725841]
[1749128923037,6.392,2631.5,2631.4,7.19425841]
[1749128923370,6.392,2631.5,2631.3,3.80039036]
[1749128923536,6.392,2631.5,2631.3,13.80039036]
[1749128923733,6.392,2631.5,2631.3,3.80039036]
[1749128923942,5.26113473,2631.8,2631.4,3.80025841]
[1749128924138,6.391,2631.7,2631.4,3.80025841]
[1749128924357,6.391,2631.7,2631.3,3.80033813]
[1749128924555,6.391,2631.7,2631.4,3.80025481]
[1749128924971,6.391,2631.7,2631.3,3.80031923]
[1749128925295,6.391,2631.6,2631.4,3.80024641]
[1749128925442,6.391,2631.6,2631.5,3.80008967]
[1749128925637,6.391,2631.6,2631.4,3.80019592]
[1749128926599,6.391,2631.6,2631.4,3.80024437]
[1749128927482,6.391,2631.6,2631.3,10.80039199]
[1749128927798,6.391,2631.6,2631.4,3.8001334]
[1749128928858,6.391,2631.6,2631.5,3.800114]
[1749128930693,6.39,2631.6,2631.5,3.800114]
[1749128932196,6.389,2631.6,2631.5,3.800114]
[1749128932386,6.389,2631.6,2631.5,6.566294]
[1749128934108,1.6101,2632.0,2631.6,3.7999092]
[1749128934296,6.388,2631.8,2631.7,3.7998252]
[1749128934500,1.6101,2632.0,2631.7,3.7998252]
[1749128934702,6.388,2631.9,2631.8,3.79967843]
[1749128934884,6.628,2631.9,2631.8,3.79967843]
[1749128935093,6.628,2631.9,2631.7,3.79975058]
[1749128935287,6.628,2631.9,2631.6,13.79985085]
[1749128938543,6.628,2631.9,2631.6,3.79985085]
[1749128939948,6.628,2631.9,2631.6,3.79985791]
[1749128940747,6.628,2631.9,2631.6,13.79985791]
[1749128941054,6.628,2631.9,2631.5,5.52102925]
[1749128942046,6.628,2631.9,2631.6,3.79994639]
[1749128942439,10.42764766,2631.9,2631.5,1.721]
[1749128942636,10.42764766,2631.9,2631.5,5.52104754]
[1749128942826,6.628,2631.9,2631.5,5.52104754]
[1749128943044,6.628,2631.9,2631.5,3.80004754]
[1749128943545,10.42754335,2631.9,2631.5,13.80004754]
[1749128944856,0.24,2631.8,2631.5,13.80004754]
[1749128945670,0.24,2631.8,2631.7,3.7998252]
[1749128945849,6.625,2631.8,2631.7,3.7998252]
[1749128946458,6.625,2631.8,2631.6,3.79992811]
[1749128947266,6.625,2631.8,2631.6,3.7999617]
[1749128947960,6.625,2631.8,2631.7,3.7998252]
[1749128948159,6.625,2631.8,2631.6,3.79988795]
[1749128950170,1.4855,2631.5,2631.3,1.721]
[1749128950368,7.8695,2631.5,2631.3,1.721]
[1749128950662,12.81669139,2631.5,2631.2,1.721]
[1749128950963,0.24,2631.4,2631.3,16.0]
[1749128951162,0.24,2631.4,2631.3,19.80040284]
[1749128951841,0.24,2631.4,2631.3,16.0]
[1749128952057,0.24,2631.4,2631.3,19.80040284]
[1749128952236,0.24,2631.4,2631.2,5.52147835]
[1749128952237,0.24,2631.4,2631.2,1.721]
[1749128952440,0.24,2631.4,2631.2,5.52146311]
[1749128952637,0.24,2631.4,2631.2,5.52147293]
[1749128953053,1.7255,2631.5,2631.2,1.721]
[1749128953251,6.383,2631.4,2631.3,3.80040242]
[1749128954130,6.383,2631.4,2631.1,19.80055932]
[1749128954337,6.383,2631.4,2631.2,3.80051124]
[1749128954954,6.383,2631.4,2631.3,3.80040284]
[1749128955976,6.383,2631.4,2631.1,5.51666002]
[1749128956174,6.383,2631.4,2631.2,3.80052881]
[1749128956478,6.383,2631.4,2631.3,3.80040284]
[1749128960263,6.382,2631.8,2631.4,26.0]
[1749128960456,1.5427,2632.0,2631.8,3.79966407]
[1749128960703,1.6042,2632.2,2631.6,16.0]
[1749128961001,6.381,2631.9,2631.8,3.79968082]
[1749128961575,1.6042,2632.2,2631.9,3.79952124]
[1749128961813,6.744734,2632.1,2631.9,3.79952124]
[1749128962103,0.363734,2632.0,2631.9,3.79952124]
[1749128962964,6.744734,2632.0,2631.9,3.79952124]
[1749128963577,6.381,2632.0,2631.8,3.7995607]
[1749128964460,6.381,2632.0,2631.7,1.716]
[1749128964672,0.6381,2631.9,2631.7,5.51582404]
[1749128964873,0.6381,2631.9,2631.7,1.716]
[1749128965101,0.6381,2631.9,2631.6,16.0]
[1749128965102,4.94719139,2631.8,2631.5,19.80002311]
[1749128965285,7.8863,2631.7,2631.5,1.716]
[1749128965485,7.8863,2631.7,2631.5,5.51610198]
[1749128965799,7.8863,2631.7,2631.5,1.716]
[1749128966563,7.8863,2631.7,2631.3,3.80030773]
[1749128966759,7.8863,2631.7,2631.3,5.51630773]
[1749128966963,7.8863,2631.7,2631.3,3.80030773]
[1749128967599,7.8863,2631.7,2631.2,21.51653264]
[1749128967600,4.94719139,2631.6,2631.2,5.51652371]
[1749128968367,4.94719139,2631.6,2631.2,3.80048486]
[1749128968699,4.94719139,2631.6,2631.1,21.51661752]
[1749128968924,4.94719139,2631.4,2631.1,19.80055041]
[1749128969105,6.379,2631.3,2631.1,1.716]
[1749128969404,6.379,2631.3,2631.1,5.51662341]
[1749128969701,6.379,2631.3,2631.1,1.716]
[1749128970271,6.379,2631.3,2631.2,3.80054727]
[1749128972705,6.379,2631.3,2631.1,17.716]
[1749128972910,6.379,2631.3,2631.2,3.80054727]
[1749128978401,2.73853364,2631.7,2631.3,3.80026708]
[1749128978723,0.36361555,2631.6,2631.4,3.80015061]
[1749128978987,1.4738,2632.3,2632.0,3.79939209]
[1749128979127,1.4738,2632.3,2632.1,3.79917278]
[1749128979128,0.36355302,2632.2,2632.1,3.79917278]
[1749128979332,0.8214353,2632.2,2632.1,3.79917278]
[1749128979627,0.8214353,2632.2,2632.0,3.79933132]
[1749128979794,0.8214353,2632.2,2631.9,1.716]
[1749128979995,1.4763,2632.0,2631.3,1.5725]
[1749128980204,1.4763,2632.0,2631.8,3.79968082]
[1749128980205,11.32319139,2631.9,2631.8,3.79968082]
[1749128980528,12.37208973,2631.9,2631.6,3.79995786]
[1749128981030,6.376,2631.8,2631.7,3.79981006]
[1749128981835,6.376,2631.8,2631.6,3.79989117]
[1749128982832,6.376,2631.8,2631.7,3.7998252]
[1749128983329,6.616,2631.8,2631.1,1.5085]
[1749128983529,5.76862669,2631.7,2631.4,3.8002012]
[1749128983830,5.76862669,2631.7,2631.4,3.80025841]
[1749128984029,4.94719139,2631.7,2631.4,3.80025841]
[1749128984194,6.616,2631.8,2631.5,3.80010004]
[1749128984391,6.615,2631.8,2631.5,3.80010004]
[1749128985331,6.615,2631.8,2631.4,10.0]
[1749128985634,6.615,2631.8,2631.4,13.80015953]
[1749128985820,6.615,2631.8,2631.5,3.80009986]
[1749128986015,6.615,2631.8,2631.5,5.33609986]
[1749128986446,0.24,2631.8,2631.7,19.7998252]
[1749128988941,6.50019139,2631.9,2631.7,1.711]
[1749128989339,12.87319139,2631.9,2631.7,1.711]
[1749128989729,16.67274096,2631.9,2631.7,1.711]
[1749128993011,16.67274096,2631.9,2631.3,5.71276939]
[1749128993012,3.8001203,2631.5,2631.3,0.38897596]
[1749128993208,10.1721203,2631.5,2631.2,17.711]
[1749128993529,3.80028923,2631.4,2631.2,1.711]
[1749128993733,5.33113232,2631.3,2631.0,1.711]
[1749128994055,1.5307,2631.3,2631.0,5.51181175]
[1749128994274,6.372,2631.5,2631.2,16.0]
[1749128994449,6.372,2631.4,2631.2,19.80045843]
[1749128995049,6.372,2631.4,2631.3,19.80040284]
[1749128995353,6.372,2631.4,2631.3,20.17510964]
[1749128995851,6.372,2631.4,2631.3,16.3747068]
[1749128996210,6.371,2631.5,2631.3,16.3747068]
[1749128997127,6.54279139,2631.4,2631.0,1.711]
[1749128997324,10.34312855,2631.4,2631.0,17.711]
[1749128997515,3.80040664,2631.3,2631.0,1.711]
[1749128997726,10.17160919,2631.2,2631.0,2.09223467]
[1749128998366,6.371,2631.2,2631.0,0.38123467]
[1749128998570,1.5956,2631.4,2631.0,1.711]
[1749128998770,6.371,2631.2,2631.0,1.711]
[1749128998985,6.371,2631.2,2631.1,16.0]
[1749128999178,6.371,2631.2,2631.1,3.80069172]
[1749128999387,6.371,2631.2,2631.1,19.80069172]
[1749128999885,6.371,2631.2,2631.1,16.0]
[1749129001081,3.80069172,2631.1,2631.0,0.38618625]
[1749129001366,12.91169139,2631.2,2630.5,13.8014749]
[1749129001367,12.91169139,2631.2,2630.5,5.51243474]
[1749129001679,0.45457839,2631.8,2630.6,3.2127]
[1749129001833,1.4373,2631.3,2631.1,16.0]
[1749129002028,6.38449139,2631.5,2631.2,3.80054601]
[1749129002372,5.23712962,2631.7,2631.2,21.51141195]
[1749129002578,10.16997498,2631.6,2631.2,21.51141195]
[1749129002877,11.31719139,2631.6,2631.2,21.51146316]
[1749129003755,15.11717591,2631.6,2631.2,21.51146316]
[1749129004052,15.11717591,2631.6,2631.2,17.711]
[1749129004258,15.11717591,2631.6,2631.2,18.09877229]
[1749129004433,15.58912335,2631.6,2631.2,18.09877229]
[1749129004843,0.47194744,2631.6,2631.2,18.09877229]
[1749129005167,6.37,2631.5,2631.2,21.89926283]
[1749129006463,6.37,2631.5,2631.2,18.09877229]
[1749129006784,1.4373,2631.7,2631.2,18.09877229]
[1749129006951,1.4373,2631.7,2631.4,16.0]
[1749129006952,6.37,2631.6,2631.4,16.0]
[1749129008084,1.537,2631.9,2631.7,16.0]
[1749129008302,6.369,2631.8,2631.4,19.80014962]
[1749129008467,10.16871354,2631.8,2631.3,13.80032447]
[1749129008654,10.16871354,2631.8,2631.3,3.80032447]
[1749129009389,6.369,2631.7,2631.4,3.80015909]
[1749129009900,6.369,2631.7,2630.5,1.5244]
[1749129009901,4.94719139,2631.3,2630.5,1.5244]
[1749129010115,7.53956061,2631.7,2630.9,3.80084758]
[1749129010116,6.369,2631.2,2630.9,3.80084758]
[1749129010249,6.369,2631.2,2631.1,3.80069172]
[1749129010449,6.369,2631.2,2631.0,3.80078821]
[1749129010689,6.369,2631.2,2631.1,3.80069172]
[1749129010891,6.369,2631.2,2630.9,1.9045831]
[1749129011069,6.369,2631.2,2630.9,20.18109993]
[1749129011264,6.369,2631.2,2631.0,3.80077236]
[1749129012064,6.369,2631.2,2630.9,16.3801831]
[1749129012265,6.369,2631.2,2630.9,0.3801831]
[1749129012466,10.80645961,2631.2,2630.3,8.199]
[1749129012672,5.36385443,2631.0,2630.6,16.0]
[1749129012877,6.368,2630.9,2630.6,16.0]
[1749129013376,6.368,2630.9,2630.7,1.707]
[1749129013775,6.368,2630.9,2630.4,5.24578765]
[1749129013776,10.16899863,2630.9,2630.4,5.24576432]
[1749129013989,3.80112637,2630.8,2630.5,1.707]
[1749129014288,3.80112637,2630.8,2630.5,0.38800236]
[1749129014492,5.24141412,2630.6,2630.1,0.02]
[1749129014654,3.80174279,2630.4,2630.1,0.02]
[1749129014853,3.80183937,2630.4,2630.1,0.02]
[1749129015089,15.11683689,2630.5,2630.1,0.02]
[1749129015296,3.80171888,2630.4,2630.1,0.02]
[1749129015456,3.80171888,2630.4,2630.1,16.02]
[1749129015857,10.1696294,2630.5,2630.1,16.02]
[1749129016093,1.44,2630.6,2630.1,16.4072496]
[1749129016278,10.1695733,2630.5,2630.1,20.20934021]
[1749129016518,4.94719139,2630.3,2630.1,0.02]
[1749129016791,16.66478363,2630.2,2630.1,0.02]
[1749129016955,11.71759224,2630.2,2630.1,0.02]
[1749129017156,12.0720584,2630.2,2630.1,0.02]
[1749129017391,12.0720584,2630.2,2630.0,40.0]
[1749129017392,20.3521368,2630.1,2630.0,6.52460752]
[1749129017591,34.30550823,2630.1,2630.0,6.52460752]
[1749129017898,15.17869962,2630.1,2630.0,6.52460752]
[1749129018197,15.68682819,2630.1,2630.0,6.52460752]
[1749129018413,21.18401958,2630.1,2630.0,6.52460752]
[1749129018775,16.23682819,2630.1,2630.0,6.52460752]
[1749129019106,21.18401958,2630.1,2630.0,6.52460752]
[1749129019786,16.23682819,2630.1,2630.0,6.52460752]
[1749129019954,21.18401958,2630.1,2630.0,6.52460752]
[1749129020160,11.2896368,2630.1,2630.0,6.52460752]
[1749129020388,21.18401958,2630.1,2630.0,6.52460752]
[1749129020784,15.68782819,2630.1,2630.0,6.52460752]
[1749129020982,9.31882819,2630.1,2630.0,6.52460752]
[1749129021386,15.68782819,2630.1,2630.0,6.52460752]
[1749129021590,20.63501958,2630.1,2630.0,6.52460752]
[1749129022092,15.68782819,2630.1,2630.0,6.52460752]